[Event "new tournament description"]
[Site ""]
[Date "2018.12.27"]
[Round "1.1"]
[White "GOZZOLI"]
[Black "GRIT"]
[Result "1-0"]
[TimeControl "4min+2sec"]
[WhiteElo "2565"]
[BlackElo "1760"]

1. d4 {[%clk 00:04:03]} {[%emt 00:00:01]} c5 {[%clk 00:04:03]} {[%emt
00:00:02]} 2. d5 {[%clk 00:04:03]} {[%emt 00:00:01]} d6 {[%clk 00:04:03]}
{[%emt 00:00:02]} 3. e4 {[%clk 00:04:01]} {[%emt 00:00:04]} Nf6 {[%clk
00:04:02]} {[%emt 00:00:03]} 4. Nc3 {[%clk 00:03:58]} {[%emt 00:00:05]} g6
{[%clk 00:04:02]} {[%emt 00:00:02]} 5. Nf3 {[%clk 00:03:58]} {[%emt 00:00:02]}
Bg7 {[%clk 00:04:02]} {[%emt 00:00:03]} 6. Bb5+ {[%clk 00:03:58]} Nbd7 {[%clk
00:03:59]} {[%emt 00:00:05]} 7. a4 {[%clk 00:03:59]} {[%emt 00:00:01]} O-O
{[%clk 00:03:23]} {[%emt 00:00:38]} 8. O-O {[%clk 00:03:58]} {[%emt 00:00:03]}
Qc7 {[%clk 00:03:00]} {[%emt 00:00:26]} 9. h3 {[%clk 00:03:54]} {[%emt
00:00:05]} e5 {[%clk 00:02:56]} {[%emt 00:00:06]} 10. dxe6 {[%clk 00:03:48]}
{[%emt 00:00:08]} fxe6 {[%clk 00:02:52]} {[%emt 00:00:06]} 11. Bf4 {[%clk
00:03:47]} {[%emt 00:00:02]} Nxe4 {[%clk 00:02:01]} {[%emt 00:00:53]} 12. Nxe4
{[%clk 00:03:47]} {[%emt 00:00:01]} Rxf4 {[%clk 00:02:01]} {[%emt 00:00:02]} 13.
Qxd6 {[%clk 00:03:35]} {[%emt 00:00:14]} Qxd6 {[%clk 00:01:43]} {[%emt
00:00:21]} 14. Nxd6 {[%clk 00:03:35]} {[%emt 00:00:01]} Bxb2 {[%clk 00:01:44]}
{[%emt 00:00:02]} 15. Rab1 {[%clk 00:03:36]} {[%emt 00:00:01]} Bd4 {[%clk
00:01:19]} {[%emt 00:00:27]} 16. Nxc8 {[%clk 00:03:35]} {[%emt 00:00:04]} Rxc8
{[%clk 00:01:19]} {[%emt 00:00:02]} 17. Bxd7 {[%clk 00:03:35]} {[%emt
00:00:01]} Rc7 {[%clk 00:01:12]} {[%emt 00:00:10]} 18. Bxe6+ {[%clk 00:03:35]}
{[%emt 00:00:02]} Kg7 {[%clk 00:01:12]} {[%emt 00:00:01]} 19. Bd5 {[%clk
00:03:23]} {[%emt 00:00:14]} b6 {[%clk 00:01:11]} {[%emt 00:00:04]} 20. Ng5
{[%clk 00:03:24]} {[%emt 00:00:01]} 1-0

[Event "new tournament description"]
[Site ""]
[Date "2018.12.27"]
[Round "1.2"]
[White "ABBASSI"]
[Black "GULIYEV"]
[Result "0-1"]
[TimeControl "4min+2sec"]
[WhiteElo "1743"]
[BlackElo "2550"]

1. d4 {[%clk 00:04:03]} d5 {[%clk 00:04:02]} {[%emt 00:00:02]} 2. Bf4 {[%clk
00:04:03]} {[%emt 00:00:01]} Nf6 {[%clk 00:04:01]} {[%emt 00:00:03]} 3. e3
{[%clk 00:04:04]} {[%emt 00:00:01]} c5 {[%clk 00:04:02]} {[%emt 00:00:01]} 4.
c3 {[%clk 00:04:05]} {[%emt 00:00:01]} Qb6 {[%clk 00:04:02]} {[%emt 00:00:02]}
5. Qb3 {[%clk 00:03:14]} {[%emt 00:00:53]} c4 {[%clk 00:03:54]} {[%emt
00:00:10]} 6. Qc2 {[%clk 00:03:15]} {[%emt 00:00:01]} Nc6 {[%clk 00:03:55]}
{[%emt 00:00:02]} 7. Nd2 {[%clk 00:02:51]} {[%emt 00:00:25]} g6 {[%clk
00:03:55]} {[%emt 00:00:02]} 8. e4 {[%clk 00:02:51]} {[%emt 00:00:02]} e6
{[%clk 00:03:50]} {[%emt 00:00:07]} 9. e5 {[%clk 00:02:39]} {[%emt 00:00:13]}
Nh5 {[%clk 00:03:45]} {[%emt 00:00:06]} 10. Bg5 {[%clk 00:02:30]} {[%emt
00:00:11]} h6 {[%clk 00:03:44]} {[%emt 00:00:04]} 11. Bh4 {[%clk 00:02:19]}
{[%emt 00:00:14]} g5 {[%clk 00:03:36]} {[%emt 00:00:10]} 12. Be2 {[%clk
00:02:13]} {[%emt 00:00:08]} Nf4 {[%clk 00:03:24]} {[%emt 00:00:13]} 13. Bg3
{[%clk 00:02:14]} {[%emt 00:00:01]} Nxg2+ {[%clk 00:03:20]} {[%emt 00:00:06]}
14. Kf1 {[%clk 00:02:09]} {[%emt 00:00:06]} Nh4 {[%clk 00:03:19]} {[%emt
00:00:02]} 15. Bxh4 {[%clk 00:01:59]} {[%emt 00:00:13]} gxh4 {[%clk 00:03:19]}
{[%emt 00:00:02]} 16. Ngf3 {[%clk 00:02:00]} Qd8 {[%clk 00:03:20]} {[%emt
00:00:02]} 17. Rg1 {[%clk 00:01:55]} {[%emt 00:00:07]} Bd7 {[%clk 00:03:16]}
{[%emt 00:00:06]} 18. b3 {[%clk 00:01:41]} {[%emt 00:00:16]} b5 {[%clk
00:03:17]} {[%emt 00:00:01]} 19. bxc4 {[%clk 00:01:33]} {[%emt 00:00:10]} bxc4
{[%clk 00:03:17]} {[%emt 00:00:02]} 20. Rb1 {[%clk 00:01:34]} {[%emt 00:00:01]}
Be7 {[%clk 00:02:50]} {[%emt 00:00:28]} 21. Ke1 {[%clk 00:01:30]} {[%emt
00:00:06]} Rb8 {[%clk 00:02:44]} {[%emt 00:00:08]} 22. Nf1 {[%clk 00:01:30]}
{[%emt 00:00:02]} Rxb1+ {[%clk 00:02:35]} {[%emt 00:00:11]} 23. Qxb1 {[%clk
00:01:31]} {[%emt 00:00:01]} Qa5 {[%clk 00:02:34]} {[%emt 00:00:03]} 24. Qb2
{[%clk 00:01:26]} {[%emt 00:00:07]} Ba3 {[%clk 00:02:26]} {[%emt 00:00:11]} 25.
Qc2 {[%clk 00:01:26]} {[%emt 00:00:02]} Ke7 {[%clk 00:02:21]} {[%emt 00:00:06]}
26. Ne3 {[%clk 00:01:11]} {[%emt 00:00:17]} Rb8 {[%clk 00:02:22]} {[%emt
00:00:02]} 27. Nd1 {[%clk 00:01:00]} {[%emt 00:00:13]} Nd8 {[%clk 00:02:14]}
{[%emt 00:00:10]} 28. Nd2 {[%clk 00:00:49]} {[%emt 00:00:13]} Ba4 {[%clk
00:02:08]} {[%emt 00:00:07]} 29. Qh7 {[%clk 00:00:37]} {[%emt 00:00:14]} Bxd1
{[%clk 00:02:08]} {[%emt 00:00:02]} 30. Bxd1 {[%clk 00:00:37]} {[%emt
00:00:02]} Qxc3 {[%clk 00:02:07]} {[%emt 00:00:03]} 31. Qxh6 {[%clk 00:00:30]}
{[%emt 00:00:09]} Qxd4 {[%clk 00:02:04]} {[%emt 00:00:05]} 32. Rg4 {[%clk
00:00:27]} {[%emt 00:00:05]} Qxe5+ {[%clk 00:02:01]} {[%emt 00:00:05]} 33. Kf1
{[%clk 00:00:24]} {[%emt 00:00:05]} Bc1 {[%clk 00:01:58]} {[%emt 00:00:05]} 34.
Qxh4+ {[%clk 00:00:23]} {[%emt 00:00:02]} Qf6 {[%clk 00:01:59]} {[%emt
00:00:01]} 35. Qxf6+ {[%clk 00:00:20]} {[%emt 00:00:05]} Kxf6 {[%clk 00:01:59]}
{[%emt 00:00:02]} 36. Nf3 {[%clk 00:00:18]} {[%emt 00:00:04]} Rb1 {[%clk
00:01:55]} {[%emt 00:00:06]} 37. Kg2 {[%clk 00:00:19]} {[%emt 00:00:01]} Rb2
{[%clk 00:01:50]} {[%emt 00:00:07]} 38. h4 {[%clk 00:00:14]} {[%emt 00:00:07]}
Be3 {[%clk 00:01:50]} {[%emt 00:00:02]} 39. h5 {[%clk 00:00:14]} {[%emt
00:00:03]} Rxf2+ {[%clk 00:01:50]} {[%emt 00:00:02]} 40. Kg3 {[%clk 00:00:15]}
{[%emt 00:00:01]} Rxa2 {[%clk 00:01:49]} {[%emt 00:00:03]} 41. Nh4 {[%clk
00:00:12]} {[%emt 00:00:05]} e5 {[%clk 00:01:47]} {[%emt 00:00:05]} 0-1

[ePGN "0.1;DGT LiveChess/2.2.3"]

[Event "new tournament description"]
[Site ""]
[Date "2018.12.27"]
[Round "2.1"]
[White "ENGELMANN"]
[Black "GOZZOLI"]
[Result "0-1"]
[TimeControl "4min+2sec"]
[WhiteElo "1987"]
[BlackElo "2565"]

1. e4 {[%clk 00:03:58]} {[%emt 00:00:05]} Nf6 {[%clk 00:04:03]} {[%emt
00:00:02]} 2. e5 {[%clk 00:03:59]} {[%emt 00:00:02]} Nd5 {[%clk 00:04:04]} 3.
d4 {[%clk 00:03:59]} {[%emt 00:00:03]} d6 {[%clk 00:04:05]} 4. c4 {[%clk
00:03:59]} {[%emt 00:00:03]} Nb6 {[%clk 00:04:06]} 5. f4 {[%clk 00:03:59]}
{[%emt 00:00:03]} g6 {[%clk 00:04:04]} {[%emt 00:00:04]} 6. Nf3 {[%clk
00:03:51]} {[%emt 00:00:11]} dxe5 {[%clk 00:04:04]} {[%emt 00:00:02]} 7. fxe5
{[%clk 00:03:49]} {[%emt 00:00:03]} c5 {[%clk 00:04:05]} 8. d5 {[%clk
00:03:41]} {[%emt 00:00:11]} Bg7 {[%clk 00:04:06]} {[%emt 00:00:01]} 9. Nc3
{[%clk 00:03:34]} {[%emt 00:00:09]} Bg4 {[%clk 00:04:05]} {[%emt 00:00:02]} 10.
Bf4 {[%clk 00:03:29]} {[%emt 00:00:07]} O-O {[%clk 00:04:04]} {[%emt 00:00:03]}
11. Be2 {[%clk 00:03:17]} {[%emt 00:00:14]} Bxf3 {[%clk 00:04:02]} {[%emt
00:00:03]} 12. gxf3 {[%clk 00:03:11]} {[%emt 00:00:08]} N8d7 {[%clk 00:04:02]}
{[%emt 00:00:02]} 13. e6 {[%clk 00:01:50]} {[%emt 00:01:24]} fxe6 {[%clk
00:04:02]} {[%emt 00:00:01]} 14. Bg5 {[%clk 00:01:44]} {[%emt 00:00:08]} exd5
{[%clk 00:03:33]} {[%emt 00:00:31]} 15. Nxd5 {[%clk 00:01:38]} {[%emt
00:00:08]} Nf6 {[%clk 00:03:29]} {[%emt 00:00:06]} 16. Bxf6 {[%clk 00:00:59]}
{[%emt 00:00:41]} exf6 {[%clk 00:03:25]} {[%emt 00:00:06]} 17. O-O {[%clk
00:00:54]} {[%emt 00:00:06]} f5 {[%clk 00:03:26]} {[%emt 00:00:02]} 18. Rb1
{[%clk 00:00:52]} {[%emt 00:00:04]} Bd4+ {[%clk 00:03:26]} {[%emt 00:00:02]} 19.
Kh1 {[%clk 00:00:51]} {[%emt 00:00:02]} Nxd5 {[%clk 00:03:26]} {[%emt
00:00:02]} 20. cxd5 {[%clk 00:00:51]} {[%emt 00:00:02]} Qxd5 {[%clk 00:03:26]}
{[%emt 00:00:02]} 21. Qa4 {[%clk 00:00:51]} {[%emt 00:00:02]} Kg7 {[%clk
00:03:25]} {[%emt 00:00:03]} 22. Rfd1 {[%clk 00:00:50]} {[%emt 00:00:03]} Rfe8
{[%clk 00:03:23]} {[%emt 00:00:04]} 23. Qc2 {[%clk 00:00:32]} {[%emt 00:00:21]}
Re3 {[%clk 00:03:16]} {[%emt 00:00:09]} 24. Rd3 {[%clk 00:00:28]} {[%emt
00:00:06]} Rae8 {[%clk 00:03:17]} {[%emt 00:00:01]} 25. Rxe3 {[%clk 00:00:27]}
{[%emt 00:00:03]} Rxe3 {[%clk 00:03:17]} 26. Rd1 {[%clk 00:00:21]} {[%emt
00:00:08]} Qxa2 {[%clk 00:03:05]} {[%emt 00:00:14]} 27. Rxd4 {[%clk 00:00:09]}
{[%emt 00:00:14]} cxd4 {[%clk 00:03:06]} {[%emt 00:00:01]} 28. Qc7+ {[%clk
00:00:10]} {[%emt 00:00:01]} Qf7 {[%clk 00:03:06]} {[%emt 00:00:02]} 29. Qc4
{[%clk 00:00:09]} {[%emt 00:00:03]} Qxc4 {[%clk 00:03:06]} {[%emt 00:00:02]}
0-1

[Event "new tournament description"]
[Site ""]
[Date "2018.12.27"]
[Round "2.2"]
[White "GULIYEV"]
[Black "ELLIS"]
[Result "1-0"]
[TimeControl "4min+2sec"]
[WhiteElo "2550"]
[BlackElo "1977"]

1. e4 {[%clk 00:04:03]} {[%emt 00:08:15]} e5 {[%clk 00:04:02]} {[%emt
00:00:02]} 2. Nf3 {[%clk 00:04:04]} {[%emt 00:00:01]} Nc6 {[%clk 00:04:03]}
{[%emt 00:00:02]} 3. Bb5 {[%clk 00:04:05]} a6 {[%clk 00:04:04]} {[%emt
00:00:01]} 4. Ba4 {[%clk 00:04:06]} Nf6 {[%clk 00:04:05]} 5. O-O {[%clk
00:04:06]} {[%emt 00:00:02]} Be7 {[%clk 00:04:05]} {[%emt 00:00:02]} 6. Re1
{[%clk 00:04:07]} {[%emt 00:00:01]} b5 {[%clk 00:04:06]} {[%emt 00:00:01]} 7.
Bb3 {[%clk 00:04:08]} d6 {[%clk 00:04:08]} 8. c3 {[%clk 00:04:09]} {[%emt
00:00:02]} O-O {[%clk 00:04:04]} {[%emt 00:00:05]} 9. d4 {[%clk 00:04:10]}
{[%emt 00:00:01]} Bg4 {[%clk 00:04:04]} {[%emt 00:00:02]} 10. d5 {[%clk
00:04:10]} {[%emt 00:00:02]} Nb8 {[%clk 00:03:50]} {[%emt 00:00:16]} 11. h3
{[%clk 00:04:10]} {[%emt 00:00:01]} Bh5 {[%clk 00:03:44]} {[%emt 00:00:08]} 12.
a4 {[%clk 00:04:09]} {[%emt 00:00:03]} Nbd7 {[%clk 00:03:40]} {[%emt 00:00:06]}
13. Nbd2 {[%clk 00:03:57]} {[%emt 00:00:15]} Nc5 {[%clk 00:03:10]} {[%emt
00:00:32]} 14. Bc2 {[%clk 00:03:55]} {[%emt 00:00:04]} c6 {[%clk 00:02:53]}
{[%emt 00:00:19]} 15. b4 {[%clk 00:03:47]} {[%emt 00:00:10]} Nxa4 {[%clk
00:02:51]} {[%emt 00:00:03]} 16. Bxa4 {[%clk 00:03:48]} {[%emt 00:00:01]} bxa4
{[%clk 00:02:52]} 17. dxc6 {[%clk 00:03:48]} {[%emt 00:00:02]} Qc7 {[%clk
00:02:38]} {[%emt 00:00:16]} 18. Qxa4 {[%clk 00:03:49]} {[%emt 00:00:02]} Rfc8
{[%clk 00:02:14]} {[%emt 00:00:26]} 19. b5 {[%clk 00:03:06]} {[%emt 00:00:45]}
axb5 {[%clk 00:02:15]} {[%emt 00:00:01]} 20. Qxa8 {[%clk 00:03:06]} Rxa8 {[%clk
00:02:17]} 21. Rxa8+ {[%emt 00:00:02]} Bf8 22. Ra6 {[%clk 00:03:01]} {[%emt
00:00:07]} Qc8 {[%clk 00:01:56]} {[%emt 00:00:25]} 23. Rb6 {[%clk 00:02:59]}
{[%emt 00:00:04]} Qc7 {[%clk 00:01:57]} {[%emt 00:00:01]} 24. Rxb5 {[%clk
00:03:00]} {[%emt 00:00:01]} Qxc6 {[%clk 00:01:58]} 25. c4 {[%clk 00:02:54]}
{[%emt 00:00:08]} Bg6 {[%clk 00:01:59]} 26. Ba3 {[%clk 00:02:45]} {[%emt
00:00:10]} Bxe4 {[%clk 00:00:37]} {[%emt 00:01:25]} 27. Nxe4 {[%clk 00:02:34]}
{[%emt 00:00:13]} Nxe4 {[%clk 00:00:38]} {[%emt 00:00:01]} 28. Rb8 {[%clk
00:02:04]} {[%emt 00:00:33]} Nc5 {[%clk 00:00:33]} {[%emt 00:00:06]} 29. Bxc5
{[%clk 00:02:00]} {[%emt 00:00:06]} Qxc5 {[%clk 00:00:34]} {[%emt 00:00:02]} 30.
Ra1 {[%clk 00:02:01]} e4 {[%clk 00:00:13]} {[%emt 00:00:23]} 31. Raa8 {[%clk
00:02:01]} {[%emt 00:00:02]} g6 {[%clk 00:00:11]} {[%emt 00:00:04]} 32. Rxf8+
{[%emt 00:00:02]} Kg7 {[%emt 00:00:01]} 33. Rfc8 {[%clk 00:01:56]} {[%emt
00:00:06]} Qb4 {[%clk 00:00:09]} {[%emt 00:00:06]} 34. Nh2 {[%clk 00:01:51]}
{[%emt 00:00:06]} Qe1+ {[%clk 00:00:06]} {[%emt 00:00:05]} 35. Nf1 {[%clk
00:01:52]} {[%emt 00:00:01]} h5 {[%clk 00:00:07]} {[%emt 00:00:01]} 36. Rc7
{[%clk 00:01:51]} {[%emt 00:00:02]} 1-0

[ePGN "0.1;DGT LiveChess/2.2.3"]

[Event "new tournament description"]
[Site ""]
[Date "2018.12.27"]
[Round "3.1"]
[White "GOZZOLI"]
[Black "GROEHN"]
[Result "1-0"]
[TimeControl "4min+2sec"]
[WhiteElo "2565"]
[BlackElo "2113"]

1. d4 {[%clk 00:04:02]} {[%emt 00:12:55]} f5 {[%clk 00:04:02]} 2. Nf3 {[%clk
00:04:02]} {[%emt 00:00:03]} Nf6 {[%clk 00:04:02]} {[%emt 00:00:01]} 3. Bg5
{[%clk 00:04:02]} Ne4 {[%clk 00:04:02]} {[%emt 00:00:11]} 4. Bf4 {[%clk
00:04:02]} d5 {[%clk 00:04:02]} {[%emt 00:00:04]} 5. Nbd2 {[%clk 00:04:02]}
{[%emt 00:00:02]} e6 {[%clk 00:04:02]} {[%emt 00:00:02]} 6. e3 {[%clk
00:04:02]} {[%emt 00:00:02]} c5 {[%clk 00:04:02]} {[%emt 00:00:08]} 7. c3
{[%clk 00:04:02]} {[%emt 00:00:02]} Nc6 {[%clk 00:04:02]} {[%emt 00:00:04]} 8.
Ne5 {[%clk 00:04:02]} {[%emt 00:00:09]} Nf6 {[%clk 00:02:38]} {[%emt 00:02:30]}
9. Bd3 {[%clk 00:03:43]} {[%emt 00:00:21]} Be7 {[%clk 00:02:34]} {[%emt
00:00:06]} 10. h3 {[%clk 00:03:02]} {[%emt 00:00:43]} Qb6 {[%clk 00:02:21]}
{[%emt 00:00:16]} 11. Qc2 {[%clk 00:02:59]} {[%emt 00:00:05]} Nxe5 {[%clk
00:02:08]} {[%emt 00:00:16]} 12. Bxe5 {[%clk 00:02:59]} {[%emt 00:00:02]} Bd7
{[%clk 00:02:05]} {[%emt 00:00:05]} 13. g4 {[%clk 00:02:59]} {[%emt 00:00:01]}
fxg4 {[%clk 00:00:50]} {[%emt 00:01:18]} 14. hxg4 {[%clk 00:02:52]} {[%emt
00:00:08]} Nxg4 {[%clk 00:00:31]} {[%emt 00:00:22]} 15. Bg6+ {[%clk 00:02:25]}
{[%emt 00:00:29]} Kd8 {[%clk 00:00:29]} {[%emt 00:00:04]} 16. Bxg7 {[%clk
00:02:23]} {[%emt 00:00:03]} Rg8 {[%clk 00:00:28]} {[%emt 00:00:04]} 17. Rxh7
{[%clk 00:02:23]} {[%emt 00:00:01]} Kc7 {[%clk 00:00:12]} {[%emt 00:00:18]} 18.
Bf7 {[%clk 00:02:21]} {[%emt 00:00:04]} Rgd8 {[%clk 00:00:10]} {[%emt
00:00:04]} 19. Nf3 {[%clk 00:02:01]} {[%emt 00:00:21]} Bd6 {[%clk 00:00:11]}
{[%emt 00:00:02]} 20. Rh4 {[%clk 00:01:54]} {[%emt 00:00:09]} e5 {[%clk
00:00:07]} {[%emt 00:00:06]} 21. Nxe5 {[%clk 00:01:46]} {[%emt 00:00:09]} Nxe5
{[%clk 00:00:07]} {[%emt 00:00:02]} 22. dxe5 {[%clk 00:01:46]} {[%emt
00:00:02]} Be7 {[%clk 00:00:08]} 23. Rh6 {[%clk 00:01:46]} {[%emt 00:00:02]}
Qb5 {[%clk 00:00:04]} {[%emt 00:00:07]} 24. Bxd5 {[%clk 00:01:41]} {[%emt
00:00:06]} Bc6 {[%clk 00:00:03]} {[%emt 00:00:03]} 25. Bxc6 {[%clk 00:01:27]}
{[%emt 00:00:16]} bxc6 {[%clk 00:00:05]} 26. Rh7 {[%clk 00:01:20]} {[%emt
00:00:08]} Kb6 {[%clk 00:00:04]} {[%emt 00:00:03]} 27. a4 {[%clk 00:01:14]}
{[%emt 00:00:08]} Qc4 {[%clk 00:00:06]} 28. a5+ {[%clk 00:01:16]} Ka6 {[%clk
00:00:07]} 29. Qe2 {[%clk 00:01:17]} Qxe2+ {[%clk 00:00:08]} {[%emt 00:00:01]}
30. Kxe2 {[%clk 00:01:17]} {[%emt 00:00:02]} c4 {[%clk 00:00:10]} 31. Bh6
{[%clk 00:01:14]} {[%emt 00:00:04]} Bc5 {[%clk 00:00:11]} {[%emt 00:00:01]} 32.
Bg5 {[%clk 00:01:13]} {[%emt 00:00:03]} Rd5 {[%clk 00:00:12]} 33. Bf6 {[%clk
00:01:13]} {[%emt 00:00:02]} Re8 {[%clk 00:00:13]} {[%emt 00:00:01]} 34. Rh4
{[%clk 00:01:13]} {[%emt 00:00:01]} Kb5 {[%clk 00:00:14]} {[%emt 00:00:02]} 35.
b3 {[%clk 00:01:13]} {[%emt 00:00:02]} cxb3 {[%emt 00:00:02]} 36. c4+ 1-0

[Event "new tournament description"]
[Site ""]
[Date "2018.12.27"]
[Round "3.2"]
[White "CANTIN"]
[Black "GULIYEV"]
[Result "0-1"]
[TimeControl "4min+2sec"]
[WhiteElo "2108"]
[BlackElo "2550"]

1. e4 {[%clk 00:04:03]} c5 {[%clk 00:04:03]} {[%emt 00:00:01]} 2. Nf3 {[%clk
00:04:04]} {[%emt 00:00:01]} d6 {[%clk 00:04:04]} {[%emt 00:00:01]} 3. d4
{[%clk 00:04:04]} cxd4 {[%clk 00:04:05]} {[%emt 00:00:01]} 4. Nxd4 {[%clk
00:04:05]} {[%emt 00:00:01]} Nf6 {[%clk 00:04:06]} {[%emt 00:00:01]} 5. Nc3
{[%clk 00:04:06]} a6 {[%clk 00:04:07]} {[%emt 00:00:01]} 6. f3 {[%clk
00:03:57]} {[%emt 00:00:11]} e6 {[%clk 00:04:06]} {[%emt 00:00:03]} 7. Be3
{[%clk 00:03:56]} {[%emt 00:00:03]} b5 {[%clk 00:04:07]} {[%emt 00:00:01]} 8.
g4 {[%clk 00:03:52]} {[%emt 00:00:06]} h6 {[%clk 00:04:04]} {[%emt 00:00:05]} 9.
Qd2 {[%clk 00:03:52]} {[%emt 00:00:02]} Nbd7 {[%clk 00:04:05]} {[%emt
00:00:01]} 10. h4 {[%clk 00:03:37]} {[%emt 00:00:16]} b4 {[%clk 00:03:50]}
{[%emt 00:00:18]} 11. Nd1 {[%clk 00:03:15]} {[%emt 00:00:24]} d5 {[%clk
00:03:46]} {[%emt 00:00:07]} 12. Nf2 {[%clk 00:03:11]} {[%emt 00:00:06]} dxe4
{[%clk 00:03:38]} {[%emt 00:00:10]} 13. g5 {[%clk 00:02:53]} {[%emt 00:00:19]}
hxg5 {[%clk 00:03:34]} {[%emt 00:00:06]} 14. hxg5 {[%clk 00:02:54]} {[%emt
00:00:01]} Rxh1 {[%clk 00:03:34]} {[%emt 00:00:02]} 15. Nxh1 {[%clk 00:02:55]}
{[%emt 00:00:01]} Nd5 {[%clk 00:03:35]} {[%emt 00:00:01]} 16. g6 {[%clk
00:02:48]} {[%emt 00:00:08]} Nxe3 {[%clk 00:03:26]} {[%emt 00:00:11]} 17. Qxe3
{[%clk 00:02:49]} {[%emt 00:00:02]} Qh4+ {[%clk 00:03:24]} {[%emt 00:00:04]} 18.
Nf2 {[%clk 00:02:50]} Bc5 {[%clk 00:03:22]} {[%emt 00:00:04]} 19. gxf7+ {[%clk
00:02:33]} {[%emt 00:00:19]} Kxf7 {[%clk 00:03:23]} {[%emt 00:00:01]} 20. O-O-O
{[%clk 00:01:57]} {[%emt 00:00:38]} Nf6 {[%clk 00:02:59]} {[%emt 00:00:26]} 21.
Nxe4 {[%clk 00:01:33]} {[%emt 00:00:26]} Nxe4 {[%clk 00:02:53]} {[%emt
00:00:08]} 22. fxe4 {[%clk 00:01:34]} {[%emt 00:00:01]} Qh6 {[%clk 00:02:49]}
{[%emt 00:00:07]} 23. Qxh6 {[%clk 00:01:34]} {[%emt 00:00:02]} gxh6 {[%clk
00:02:49]} {[%emt 00:00:01]} 24. Be2 {[%clk 00:01:24]} {[%emt 00:00:12]} Bb7
{[%clk 00:02:34]} {[%emt 00:00:18]} 25. Bg4 {[%clk 00:01:04]} {[%emt 00:00:21]}
Bxd4 {[%clk 00:02:04]} {[%emt 00:00:32]} 26. Rxd4 {[%clk 00:00:59]} {[%emt
00:00:06]} Rg8 {[%clk 00:02:04]} {[%emt 00:00:02]} 27. Bh5+ {[%clk 00:00:33]}
{[%emt 00:00:28]} Kf6 {[%clk 00:02:06]} {[%emt 00:00:01]} 28. b3 {[%clk
00:00:31]} {[%emt 00:00:04]} a5 {[%clk 00:02:04]} {[%emt 00:00:03]} 29. Kb2
{[%clk 00:00:31]} {[%emt 00:00:03]} Rg5 {[%clk 00:02:02]} {[%emt 00:00:05]} 30.
Be8 {[%clk 00:00:23]} {[%emt 00:00:09]} Re5 {[%clk 00:01:59]} {[%emt 00:00:04]}
31. Rd7 {[%clk 00:00:22]} {[%emt 00:00:03]} Bxe4 {[%clk 00:01:58]} {[%emt
00:00:03]} 32. Rf7+ {[%clk 00:00:20]} {[%emt 00:00:04]} Kg5 {[%clk 00:01:59]}
{[%emt 00:00:01]} 33. Rf8 {[%clk 00:00:18]} {[%emt 00:00:04]} Rc5 {[%clk
00:01:52]} {[%emt 00:00:09]} 34. Rg8+ {[%clk 00:00:18]} {[%emt 00:00:03]} Kf4
{[%clk 00:01:52]} {[%emt 00:00:01]} 35. Rf8+ {[%clk 00:00:08]} {[%emt
00:00:11]} Bf5 {[%clk 00:01:52]} {[%emt 00:00:02]} 36. c4 {[%clk 00:00:07]}
{[%emt 00:00:03]} bxc3+ {[%clk 00:01:53]} {[%emt 00:00:01]} 37. Kc1 {[%clk
00:00:09]} Re5 {[%clk 00:01:52]} {[%emt 00:00:02]} 38. Kd1 {[%clk 00:00:07]}
{[%emt 00:00:03]} c2+ {[%clk 00:01:53]} 0-1

[ePGN "0.1;DGT LiveChess/2.2.3"]